bitfinex/quotes_BTCUSD_20250705
["timestamp","ask_amount","ask_price","bid_price","bid_amount"]
[1751681520368,0.21951089,108020.0,108010.0,0.59692069]
[1751681525135,0.22876826,108020.0,108010.0,0.60617857]
[1751681529311,0.05287448,108020.0,108010.0,0.60617857]
[1751681529500,0.25654036,108020.0,108010.0,0.60617857]
[1751681529724,0.25654036,108020.0,108010.0,0.59692069]
[1751681531106,0.25654036,108020.0,108010.0,0.60617866]
[1751681533660,0.01951396,108020.0,108010.0,1.01510346]
[1751681533867,0.02877133,108020.0,108010.0,1.01510346]
[1751681534226,0.25702967,108020.0,108010.0,0.60617866]
[1751681534471,0.24777282,108020.0,108010.0,0.79257866]
[1751681534658,0.24777282,108020.0,108010.0,0.79557866]
[1751681535188,0.22000089,108020.0,108010.0,0.79557866]
[1751681535566,0.229258,108020.0,108010.0,0.79557866]
[1751681535762,0.229258,108020.0,108010.0,0.80483654]
[1751681538607,0.05336456,108020.0,108010.0,0.80483654]
[1751681540131,0.06262193,108020.0,108010.0,0.80483654]
[1751681540964,0.07187947,108020.0,108010.0,0.80483654]
[1751681541170,0.07187947,108020.0,108010.0,0.89627347]
[1751681541372,0.07187947,108020.0,108010.0,0.80483654]
[1751681542192,0.07187947,108020.0,108010.0,0.80983603]
[1751681548281,0.05041396,108020.0,108010.0,0.80983603]
[1751681548494,0.05967133,108020.0,108010.0,1.09070421]
[1751681551777,0.01851396,108020.0,108010.0,1.09070421]
[1751681552018,0.02777124,108020.0,108010.0,1.09070421]
[1751681552581,0.03702861,108020.0,108010.0,1.09070421]
[1751681553274,0.03702861,108020.0,108010.0,0.80983603]
[1751681553500,0.05342861,108020.0,108010.0,1.09070421]
[1751681553941,0.06268606,108020.0,108010.0,0.80983603]
[1751681554097,0.06268606,108020.0,108010.0,1.09070421]
[1751681554547,0.04417124,108020.0,108010.0,1.09070421]
[1751681558757,0.06037124,108020.0,108010.0,1.09070421]
[1751681560117,0.06962861,108020.0,108010.0,1.09070421]
[1751681560278,0.07888606,108020.0,108010.0,1.09070421]
[1751681562150,0.07888606,108020.0,108010.0,1.08144641]
[1751681562346,0.07888606,108020.0,108010.0,0.80057823]
[1751681563173,0.07888606,108020.0,108010.0,1.08144641]
[1751681564250,0.07888606,108020.0,108010.0,1.09070421]
[1751681564801,0.07888675,108020.0,108010.0,1.09070421]
[1751681566944,0.15114391,108030.0,108020.0,0.20366554]
[1751681567146,0.07996466,108030.0,108020.0,0.77142759]
[1751681567315,0.03369152,108030.0,108020.0,1.06882759]
[1751681567558,0.02348978,108030.0,108020.0,1.06882759]
[1751681568151,0.02448978,108030.0,108020.0,1.06882759]
[1751681568370,0.02448978,108030.0,108020.0,1.16026452]
[1751681568577,0.02348978,108030.0,108020.0,1.16026452]
[1751681568782,0.02348978,108030.0,108020.0,1.16226452]
[1751681568994,0.02348978,108030.0,108020.0,1.16326452]
[1751681569202,0.03274612,108030.0,108020.0,1.16326452]
[1751681569412,0.03274603,108030.0,108020.0,1.16326452]
[1751681569821,0.03274603,108030.0,108020.0,1.07182759]
[1751681570847,0.03274603,108030.0,108020.0,1.08100515]
[1751681571053,0.0049777,108030.0,108020.0,1.40199662]
[1751681572108,0.0049777,108030.0,108020.0,1.39899662]
[1751681572391,0.0049777,108030.0,108020.0,1.40399662]
[1751681572598,0.0049777,108030.0,108020.0,1.49543355]
[1751681572810,0.0049777,108030.0,108020.0,2.65932173]
[1751681573915,0.0052043,108050.0,108040.0,0.26288392]
[1751681574118,0.0052043,108050.0,108040.0,1.23248504]
[1751681575722,0.0052043,108050.0,108040.0,1.23348504]
[1751681575883,0.0052043,108050.0,108040.0,1.25840389]
[1751681577597,0.0082043,108050.0,108040.0,1.25840389]
[1751681578137,0.0082043,108050.0,108040.0,0.859302]
[1751681578337,0.0082043,108050.0,108040.0,1.25840389]
[1751681578734,0.0082043,108050.0,108040.0,1.23348504]
[1751681579081,0.0082043,108050.0,108040.0,0.99684419]
[1751681579285,0.0397043,108050.0,108040.0,0.7843023]
[1751681579615,0.0397043,108050.0,108040.0,0.79884315]
[1751681580033,0.0397043,108050.0,108040.0,1.19794504]
[1751681580787,0.0489585,108050.0,108040.0,1.19794504]
[1751681581588,0.0397043,108050.0,108040.0,1.19794504]
[1751681581793,0.0397043,108050.0,108040.0,1.23672828]
[1751681584372,0.0082043,108050.0,108040.0,1.27108828]
[1751681584534,0.0082043,108050.0,108040.0,1.67019017]
[1751681585394,0.0344,108070.0,108060.0,0.21284367]
[1751681585599,0.0344,108070.0,108060.0,0.88998249]
[1751681585804,0.0344,108070.0,108060.0,0.98141942]
[1751681586058,0.0344,108070.0,108060.0,0.97216591]
[1751681586668,0.0344,108070.0,108060.0,0.98156065]
[1751681586971,0.04365249,108070.0,108060.0,0.89012372]
[1751681587416,0.04365249,108070.0,108060.0,0.49102183]
[1751681587919,0.04680249,108070.0,108060.0,0.49102183]
[1751681588059,0.05605506,108070.0,108060.0,0.49102183]
[1751681588273,0.06530789,108070.0,108060.0,0.49102183]
[1751681588877,0.06530789,108070.0,108060.0,0.9990615]
[1751681588878,0.0024,108070.0,108060.0,0.9990615]
[1751681590625,0.0024,108070.0,108060.0,1.00827632]
[1751681591264,0.0024,108070.0,108060.0,1.18888257]
[1751681591704,0.0343,108070.0,108060.0,1.18888257]
[1751681593480,0.0343,108070.0,108060.0,0.78978068]
[1751681596605,0.0343,108070.0,108060.0,1.18888257]
[1751681596809,0.0024,108070.0,108060.0,1.60842257]
[1751681596996,0.0036043,108080.0,108070.0,0.51214282]
[1751681597198,0.0036043,108080.0,108070.0,1.56058164]
[1751681598685,0.0036043,108080.0,108070.0,1.58791521]
[1751681599179,0.0036043,108080.0,108070.0,1.58891521]
[1751681600203,0.0036043,108080.0,108070.0,2.08681521]
[1751681600418,0.0036043,108080.0,108070.0,2.17825214]
[1751681606150,0.002,108090.0,108080.0,0.50555884]
[1751681606325,0.0336,108090.0,108080.0,1.18273766]
[1751681607340,0.0346,108090.0,108080.0,1.18273766]
[1751681607872,0.0346,108090.0,108080.0,0.78363577]
[1751681608098,0.0346,108090.0,108080.0,0.55469874]
[1751681608301,0.73185739,108090.0,108080.0,0.55633063]
[1751681608502,0.12922219,108090.0,108080.0,0.75063097]
[1751681608733,0.53757562,108090.0,108080.0,0.75063097]
[1751681609274,0.53757562,108090.0,108080.0,0.74137874]
[1751681609533,0.53757562,108090.0,108080.0,0.75063106]
[1751681609710,0.13847373,108090.0,108080.0,0.75988329]
[1751681609914,0.53757562,108090.0,108080.0,0.76913543]
[1751681610083,0.53757562,108090.0,108080.0,0.75988329]
[1751681610286,0.53757562,108090.0,108080.0,0.76913543]
[1751681610477,0.72260661,108090.0,108080.0,0.74137874]
[1751681610680,0.71335549,108090.0,108080.0,0.75063114]
[1751681611017,0.79554105,108090.0,108080.0,0.74137874]
[1751681611344,0.87554105,108090.0,108080.0,0.74137874]
[1751681611538,0.89766635,108090.0,108080.0,0.74137874]
[1751681612769,0.88841481,108090.0,108080.0,0.74137874]
[1751681613887,0.72378818,108090.0,108080.0,0.74137874]
[1751681615139,0.73243578,108090.0,108080.0,0.74137874]
[1751681616192,0.73243578,108090.0,108080.0,0.75063106]
[1751681616425,0.73243578,108090.0,108080.0,0.75988329]
[1751681617190,0.76018981,108090.0,108080.0,0.76913535]
[1751681617409,0.36108792,108090.0,108080.0,0.76913543]
[1751681617657,0.14468009,108090.0,108080.0,0.78763929]
[1751681617830,0.14467958,108090.0,108080.0,0.78763929]
[1751681618039,0.14467949,108090.0,108080.0,0.87907622]
[1751681618245,0.06467949,108090.0,108080.0,0.87907622]
[1751681618478,0.0646834,108090.0,108080.0,0.87907622]
[1751681618802,0.07393469,108090.0,108080.0,0.77838749]
[1751681619000,0.07393469,108090.0,108080.0,0.78763938]
[1751681619616,0.07393469,108090.0,108080.0,0.78763886]
[1751681620866,0.07393469,108090.0,108080.0,0.77838706]
[1751681621621,0.07393469,108090.0,108080.0,0.78763886]
[1751681621812,0.0739346,108090.0,108080.0,0.82575914]
[1751681622012,0.07393469,108090.0,108080.0,0.82575914]
[1751681622217,0.07393469,108090.0,108080.0,0.78763886]
[1751681623268,0.0739346,108090.0,108080.0,0.78763886]
[1751681625028,0.08318589,108090.0,108080.0,0.78763886]
[1751681625414,0.08318589,108090.0,108080.0,0.77838714]
[1751681625615,0.08318589,108090.0,108080.0,0.78763894]
[1751681626876,0.16318589,108090.0,108080.0,0.78763894]
[1751681627510,0.16318589,108090.0,108080.0,0.77838714]
[1751681627816,0.16318589,108090.0,108080.0,0.78763903]
[1751681628556,0.17243743,108090.0,108080.0,0.76913517]
[1751681628776,0.17243735,108090.0,108080.0,0.77838714]
[1751681629050,0.16318649,108090.0,108080.0,0.75988311]
[1751681629472,0.34821748,108090.0,108080.0,0.75063097]
[1751681629810,0.74731937,108090.0,108080.0,0.75063097]
[1751681630011,0.76944467,108090.0,108080.0,0.75988311]
[1751681630234,0.36169127,108090.0,108080.0,0.75988311]
[1751681630439,0.36169127,108090.0,108060.0,0.58728548]
[1751681630440,0.05283592,108070.0,108060.0,0.18522359]
[1751681630646,0.45193781,108070.0,108060.0,0.47239446]
[1751681630815,0.07134149,108070.0,108060.0,0.49090183]
[1751681631160,0.07134149,108070.0,108060.0,0.50015534]
[1751681631288,0.06208831,108070.0,108060.0,0.50015534]
[1751681631493,0.0713414,108070.0,108060.0,0.50015534]
[1751681631748,0.07134131,108070.0,108060.0,0.50215534]
[1751681633455,0.07134131,108070.0,108060.0,0.50515534]
[1751681634060,0.06208831,108070.0,108060.0,0.50515534]
[1751681635673,0.06208831,108070.0,108060.0,0.80255534]
[1751681639007,0.0312,108070.0,108060.0,0.8237787]
[1751681639224,0.04970523,108070.0,108060.0,0.8237787]
[1751681639442,0.04970523,108070.0,108060.0,0.80255534]
[1751681639642,0.04970515,108070.0,108060.0,0.80255534]
[1751681642114,0.04045249,108070.0,108060.0,0.80255534]
[1751681642333,0.04970506,108070.0,108060.0,0.80255534]
[1751681643036,0.04045249,108070.0,108060.0,0.80255534]
[1751681643262,0.04970523,108070.0,108060.0,0.80255534]
[1751681644218,0.04970515,108070.0,108060.0,0.80255534]
[1751681648898,0.04045249,108070.0,108060.0,0.80255534]
[1751681649220,0.04970515,108070.0,108060.0,0.80255534]
[1751681649852,0.04045249,108070.0,108060.0,0.80255534]
[1751681650180,0.0312,108070.0,108060.0,0.80255534]
[1751681650419,0.04045249,108070.0,108060.0,0.80255534]
[1751681651415,0.04045249,108070.0,108060.0,0.89399227]
[1751681653842,0.04045249,108070.0,108060.0,1.17459023]
[1751681657998,0.05895789,108070.0,108060.0,1.17459023]
[1751681658180,0.0589578,108070.0,108060.0,1.17459023]
[1751681659256,0.0589578,108070.0,108060.0,0.89399227]
[1751681659642,0.04970506,108070.0,108060.0,0.89399227]
[1751681659823,0.0589578,108070.0,108060.0,0.89399227]
[1751681660338,0.0867778,108070.0,108060.0,0.89399227]
[1751681660906,0.0867778,108070.0,108060.0,0.80255534]
[1751681666363,0.09603063,108070.0,108060.0,0.80255534]
[1751681666514,0.10832363,108070.0,108060.0,0.80255534]
[1751681666729,0.37966859,108070.0,108060.0,0.80255534]
[1751681667039,0.3889215,108070.0,108060.0,0.80255534]
[1751681669792,0.37966859,108070.0,108060.0,0.80255534]
[1751681670419,0.38892159,108070.0,108060.0,0.80255534]
[1751681670878,0.3889215,108070.0,108060.0,0.80255534]
[1751681671094,0.10832354,108070.0,108060.0,0.80255534]
[1751681671858,0.10832414,108070.0,108060.0,0.80255534]
[1751681672031,0.09907105,108070.0,108060.0,0.80255534]
[1751681672208,0.10832414,108070.0,108060.0,0.80255534]
[1751681672928,0.3889221,108070.0,108060.0,0.80255534]
[1751681673178,0.37966901,108070.0,108060.0,0.80255534]
[1751681673565,0.3889221,108070.0,108060.0,0.80255534]
[1751681674318,0.38892201,108070.0,108060.0,0.80255534]
[1751681678814,0.10832405,108070.0,108060.0,0.80255534]
[1751681679000,0.38892201,108070.0,108060.0,0.80255534]
[1751681683025,0.37966901,108070.0,108060.0,0.80255534]
[1751681684484,0.09907105,108070.0,108060.0,0.80255534]
[1751681691848,0.08981814,108070.0,108060.0,0.80255534]
[1751681697158,0.09907123,108070.0,108060.0,0.80255534]
[1751681697636,0.08981814,108070.0,108060.0,0.80255534]
[1751681697937,0.3704161,108070.0,108060.0,0.80255534]
[1751681698340,0.37966919,108070.0,108060.0,0.80255534]
[1751681699721,0.3796691,108070.0,108060.0,0.80255534]
[1751681699931,0.09907114,108070.0,108060.0,0.80255534]
[1751681700130,0.57398759,108070.0,108060.0,0.79330174]
[1751681700335,0.63860354,108070.0,108060.0,0.30254123]
[1751681700563,0.66638103,108070.0,108060.0,0.4968777]
[1751681700780,0.67289111,108070.0,108060.0,0.50613173]
[1751681700956,0.61141921,108070.0,108060.0,0.50613173]
[1751681701356,0.60216621,108070.0,108060.0,0.4948777]
[1751681701543,0.59291295,108070.0,108060.0,0.4948777]
[1751681701746,0.59291295,108070.0,108060.0,0.4918777]
[1751681701946,0.5929089,108070.0,108060.0,0.4918777]
[1751681702157,0.5939089,108070.0,108060.0,0.4918777]
[1751681702738,0.68534583,108070.0,108060.0,0.30679534]
[1751681702937,0.68533842,108070.0,108060.0,0.29754123]
[1751681704399,0.60302862,108070.0,108060.0,0.29754123]
[1751681704637,0.57525113,108070.0,108060.0,0.29754123]
[1751681707250,0.57525113,108070.0,108060.0,0.30679534]
[1751681707602,0.56657834,108070.0,108060.0,0.30679534]
[1751681708761,0.56657299,108070.0,108060.0,0.30679534]
[1751681709672,0.57582608,108070.0,108060.0,0.4918777]
[1751681711543,0.56657299,108070.0,108060.0,0.4918777]
[1751681711738,0.56657226,108070.0,108060.0,0.4918777]
[1751681714515,0.56657226,108070.0,108060.0,0.48262359]
[1751681717929,0.56657226,108070.0,108060.0,0.4918777]
[1751681718330,0.56657226,108070.0,108060.0,0.29754123]
[1751681720900,0.65800919,108070.0,108060.0,0.29754123]
[1751681722862,0.56657226,108070.0,108060.0,0.29754123]
[1751681726532,0.59434975,108070.0,108060.0,0.29754123]
[1751681731947,0.59434975,108070.0,108060.0,0.4918777]
[1751681732140,0.59434975,108070.0,108060.0,0.48262359]
[1751681737612,0.59434975,108070.0,108060.0,0.29754123]
[1751681738589,0.68578668,108070.0,108060.0,0.29754123]
[1751681739329,1.18970132,108070.0,108060.0,0.00014123]
[1751681739811,0.2255363,108060.0,108050.0,0.25054123]
[1751681740013,0.78988222,108060.0,108050.0,0.25062836]
[1751681740317,0.81210421,108060.0,108050.0,0.25062836]
[1751681740462,0.8647579,108060.0,108050.0,0.25062836]
[1751681741261,0.8647579,108060.0,108050.0,0.25162836]
[1751681742722,0.53150625,108060.0,108050.0,0.25162836]
[1751681743673,0.55933225,108060.0,108050.0,0.25162836]
[1751681745519,0.56858611,108060.0,108050.0,0.43672785]
[1751681745731,0.38350375,108060.0,108050.0,0.44598282]
[1751681745945,0.03707934,108060.0,108050.0,0.86484159]
[1751681746137,0.03701439,108060.0,108050.0,0.84578159]
[1751681746339,0.03701431,108060.0,108050.0,0.84578159]
[1751681746560,0.01850677,108060.0,108050.0,0.84578159]
[1751681746763,0.02776037,108060.0,108050.0,0.86188159]
[1751681747662,0.02776037,108060.0,108050.0,0.58128363]
[1751681747783,0.12794629,108060.0,108050.0,0.56518363]
[1751681748447,0.12794698,108060.0,108050.0,0.56518363]
[1751681749029,0.11869295,108060.0,108050.0,0.56518363]
[1751681749248,0.03701465,108060.0,108050.0,0.56518363]
[1751681750599,0.03701457,108060.0,108050.0,0.56518363]
[1751681752770,0.00925343,108060.0,108050.0,0.56814363]
[1751681752964,0.62110156,108070.0,108060.0,0.18508236]
[1751681753309,0.61184865,108070.0,108060.0,0.19433647]
[1751681753513,0.60259548,108070.0,108060.0,0.19433647]
[1751681754044,0.00925377,108060.0,108050.0,0.82727174]
[1751681754252,0.00925377,108060.0,108050.0,0.82627174]
[1751681754824,0.00925377,108060.0,108050.0,0.54567378]
[1751681755138,0.01850771,108060.0,108050.0,0.54567378]
[1751681756106,0.02776139,108060.0,108050.0,0.54567378]
[1751681756311,0.30835935,108060.0,108050.0,0.54667378]
[1751681756939,0.02776139,108060.0,108050.0,0.54667378]
[1751681757251,0.03701499,108060.0,108050.0,0.54667378]
[1751681758036,0.0462685,108060.0,108050.0,0.54667378]
[1751681763111,0.0462685,108060.0,108050.0,0.54667378]
[1751681763651,0.32686646,108060.0,108050.0,0.54667378]
[1751681764962,0.32686638,108060.0,108050.0,0.54667378]
[1751681767339,0.04626842,108060.0,108050.0,0.54667378]
[1751681770162,0.02776079,108060.0,108050.0,0.54667378]
[1751681770375,0.03701465,108060.0,108050.0,0.54667378]
[1751681771355,0.04626868,108060.0,108050.0,0.54667378]
[1751681771577,0.07736868,108060.0,108050.0,0.54667378]
[1751681775460,0.06811465,108060.0,108050.0,0.54667378]
[1751681775661,0.05886079,108060.0,108050.0,0.54667378]
[1751681775949,0.06811465,108060.0,108050.0,0.54667378]
[1751681778268,0.13666744,108070.0,108060.0,0.21284376]
[1751681778548,0.15186184,108070.0,108060.0,0.77107873]
[1751681778706,0.15186184,108070.0,108060.0,0.49048077]
[1751681779427,0.33692707,108070.0,108060.0,0.47197332]
[1751681779634,0.62055503,108070.0,108060.0,0.47197332]
[1751681779840,0.62155503,108070.0,108060.0,0.48122726]
[1751681780644,0.62155503,108070.0,108060.0,0.73176849]
[1751681781500,0.63100033,108070.0,108060.0,0.72251455]
[1751681781891,0.63100033,108070.0,108060.0,0.73176841]
[1751681782191,0.62174767,108070.0,108060.0,0.73176849]
[1751681782376,0.61249476,108070.0,108060.0,0.73176849]
[1751681784541,0.70393169,108070.0,108060.0,0.73176849]
[1751681785673,0.51867407,108070.0,108060.0,0.74102226]
[1751681785882,0.52792733,108070.0,108060.0,0.75027594]
[1751681786775,0.52489733,108070.0,108060.0,0.75027594]
[1751681787904,0.4334604,108070.0,108060.0,0.75027594]
[1751681788312,0.40569057,108070.0,108060.0,0.75027594]
[1751681788675,0.12509261,108070.0,108060.0,0.75027594]
[1751681789061,0.15286244,108070.0,108060.0,0.75027594]
[1751681789263,0.15286176,108070.0,108060.0,0.75027577]
[1751681789464,0.16211493,108070.0,108060.0,0.75027586]
[1751681789716,0.17136819,108070.0,108060.0,0.75027594]
[1751681790833,0.16211553,108070.0,108060.0,0.75027594]
[1751681792256,0.1436091,108070.0,108060.0,0.75952945]
[1751681792435,0.15286236,108070.0,108060.0,0.75027594]
[1751681793229,0.15286236,108070.0,108060.0,0.74102226]
[1751681794448,0.15286236,108070.0,108060.0,0.75027594]
[1751681796570,0.15286236,108070.0,108060.0,0.74102226]
[1751681796783,0.10325576,108070.0,108060.0,0.75027586]
[1751681796995,0.02321587,108070.0,108060.0,1.33948529]
[1751681797209,0.02321587,108070.0,108060.0,1.35538529]
[1751681797411,0.001,108070.0,108060.0,1.35538529]
[1751681798575,0.04294389,108080.0,108070.0,0.21282397]
[1751681798815,0.04294389,108080.0,108070.0,0.77105886]
[1751681799263,0.03369192,108080.0,108070.0,0.77105886]
[1751681799441,0.09173665,108080.0,108070.0,0.77105886]
[1751681799649,0.02718261,108080.0,108070.0,0.77105886]
[1751681799861,0.01850352,108080.0,108070.0,0.77105886]
[1751681801358,0.01850352,108080.0,108070.0,1.02160009]
[1751681801496,0.01950352,108080.0,108070.0,1.02160009]
[1751681802599,0.01025163,108080.0,108070.0,1.02160009]
[1751681802810,0.01950352,108080.0,108070.0,1.02160009]
[1751681802996,0.02875558,108080.0,108070.0,1.02160009]
[1751681803201,0.04445558,108080.0,108070.0,1.02160009]
[1751681803328,0.05313467,108080.0,108070.0,1.02160009]
[1751681803685,0.04388261,108080.0,108070.0,1.02160009]
[1751681803988,0.05313467,108080.0,108070.0,1.02160009]
[1751681805190,0.06953467,108080.0,108070.0,1.02160009]
[1751681806408,0.07878681,108080.0,108070.0,1.02160009]
[1751681807475,0.06953467,108080.0,108070.0,1.02160009]
[1751681808375,0.0787869,108080.0,108070.0,1.02160009]
[1751681808579,0.06953467,108080.0,108070.0,1.02160009]
[1751681809102,0.07878681,108080.0,108070.0,1.02160009]
[1751681809596,0.06953467,108080.0,108070.0,1.02160009]
[1751681809733,0.06953475,108080.0,108070.0,1.02160009]
[1751681809934,0.0695215,108080.0,108070.0,1.02160009]
[1751681814056,0.0374215,108080.0,108070.0,1.02160009]
[1751681814293,0.02875558,108080.0,108070.0,1.02160009]
[1751681814690,0.04525558,108080.0,108070.0,1.02160009]
[1751681814854,0.0702215,108080.0,108070.0,1.02160009]
[1751681816486,0.07022242,108080.0,108070.0,1.02160009]
[1751681817963,0.07947465,108080.0,108070.0,1.02160009]
[1751681818171,0.08872705,108080.0,108070.0,0.74100221]
[1751681818376,0.07022242,108080.0,108070.0,1.03085283]
[1751681818926,0.07947465,108080.0,108070.0,1.03085283]
[1751681820514,0.00966684,108080.0,108070.0,1.03085283]
[1751681820714,0.001,108080.0,108070.0,1.04901283]
[1751681820954,0.001,108080.0,108070.0,1.06541283]
[1751681822244,0.02050163,108090.0,108080.0,0.21280429]
[1751681822444,0.02975258,108090.0,108080.0,0.77099918]
[1751681823039,0.10975258,108090.0,108080.0,0.77099918]
[1751681823300,0.082,108090.0,108080.0,1.11593734]
[1751681823527,0.002,108090.0,108080.0,1.11593734]
[1751681824176,0.003,108090.0,108080.0,1.11593734]
[1751681824400,0.003,108090.0,108080.0,1.02450041]
[1751681825747,0.003,108090.0,108080.0,1.33583922]
[1751681825878,0.003,108090.0,108080.0,1.35143922]
[1751681829866,0.003,108090.0,108080.0,1.33583922]
[1751681830185,0.003,108090.0,108080.0,1.31963922]
[1751681832765,0.003,108090.0,108080.0,1.41107615]
[1751681835259,0.003,108090.0,108080.0,1.31963922]
[1751681835651,0.003,108090.0,108080.0,1.35143922]
[1751681836989,0.002,108090.0,108080.0,1.35143922]
[1751681837818,0.002,108090.0,108080.0,1.35243922]
[1751681838024,0.002,108090.0,108080.0,1.35143922]
[1751681838232,0.002,108090.0,108080.0,1.35443922]
[1751681838604,0.002,108090.0,108080.0,1.44787615]
[1751681839773,0.0235643,108100.0,108090.0,0.47586668]
[1751681839974,0.0235643,108100.0,108090.0,1.03698157]
[1751681841039,0.02403614,108100.0,108090.0,1.03698157]
[1751681841445,0.02403614,108100.0,108090.0,1.03798157]
[1751681841617,0.02403614,108100.0,108090.0,1.1294185]
[1751681847668,0.00407614,108100.0,108090.0,1.1294185]
[1751681850476,0.00407614,108100.0,108090.0,1.41001646]
[1751681850679,0.00407614,108100.0,108090.0,1.44161646]
[1751681851121,0.00407614,108100.0,108090.0,1.44061646]
[1751681851497,0.00407614,108100.0,108090.0,1.44261646]
[1751681851712,0.0024,108110.0,108100.0,0.47473085]
[1751681852033,0.00248729,108110.0,108100.0,1.3134837]
[1751681852275,0.00248729,108110.0,108100.0,1.33781121]
[1751681852624,0.00248729,108110.0,108100.0,1.35371121]
[1751681853248,0.00248729,108110.0,108100.0,1.35471121]
[1751681854094,0.00248729,108110.0,108100.0,1.36396208]
[1751681854949,0.00248729,108110.0,108100.0,1.33881121]
[1751681855517,0.00248729,108110.0,108100.0,1.05821325]
[1751681856720,0.00248729,108110.0,108100.0,1.03092574]
[1751681858424,0.01808729,108110.0,108100.0,1.03092574]
[1751681863410,0.03678729,108110.0,108100.0,0.54570734]
[1751681863625,0.03678729,108110.0,108100.0,0.75032778]
[1751681863840,0.04603652,108110.0,108100.0,0.75032778]
[1751681864486,0.04603644,108110.0,108100.0,0.75032778]
[1751681866446,0.04603644,108110.0,108100.0,0.73578693]
[1751681866636,0.05528576,108110.0,108100.0,0.73578693]
[1751681867290,0.05528576,108110.0,108100.0,0.54966693]
[1751681867492,0.05528576,108110.0,108100.0,0.73586693]
[1751681870302,0.05528576,108110.0,108100.0,0.72661684]
[1751681870539,0.53937981,108110.0,108100.0,0.52191589]
[1751681870745,0.6431842,108110.0,108100.0,0.70815589]
[1751681871165,0.63393462,108110.0,108100.0,0.70815589]
[1751681875421,0.35333696,108110.0,108100.0,0.71740658]
[1751681875626,0.52030232,108110.0,108100.0,0.7359077]
[1751681875897,0.26190003,108110.0,108100.0,0.7359077]
[1751681876102,0.06395709,108110.0,108100.0,0.74515813]
[1751681876233,0.34455505,108110.0,108100.0,0.74515813]
[1751681877018,0.34455505,108110.0,108100.0,0.75440848]
[1751681877347,0.34455505,108110.0,108100.0,0.74515813]
[1751681877550,0.34455505,108110.0,108100.0,0.7359077]
[1751681877876,0.34455505,108110.0,108100.0,0.75440848]
[1751681878264,0.34455505,108110.0,108100.0,0.74515813]
[1751681878629,0.34455505,108110.0,108100.0,0.75440848]
[1751681879007,0.34455505,108110.0,108100.0,0.74515813]
[1751681879232,0.34455505,108110.0,108100.0,0.75440848]
[1751681880276,0.34455505,108110.0,108100.0,0.74515813]
[1751681880877,0.34455505,108110.0,108100.0,0.75440839]
[1751681881063,0.35380419,108110.0,108100.0,0.7451577]
[1751681882000,0.35380419,108110.0,108100.0,0.73590744]
[1751681882140,0.36305402,108110.0,108100.0,0.74515779]
[1751681882363,0.35380419,108110.0,108100.0,0.74515779]
[1751681882786,0.35380419,108110.0,108100.0,0.75440805]
[1751681883109,0.34455453,108110.0,108100.0,0.75440805]
[1751681883263,0.34455453,108110.0,108100.0,0.75440763]
[1751681883264,0.35380419,108110.0,108100.0,0.75440763]
[1751681883462,0.35380419,108110.0,108100.0,0.74515745]
[1751681883663,0.36305402,108110.0,108100.0,0.72665684]
[1751681883873,0.36305402,108110.0,108100.0,0.73590719]
[1751681884076,0.45404913,108110.0,108100.0,0.71740649]
[1751681884278,0.45404913,108110.0,108100.0,0.72665701]
[1751681884478,0.4762448,108110.0,108100.0,0.73590744]
[1751681885131,0.37599986,108110.0,108100.0,0.75440805]
[1751681885327,0.36305402,108110.0,108100.0,0.74515779]
[1751681885741,0.35380419,108110.0,108100.0,0.75440805]
[1751681886363,0.35380419,108110.0,108100.0,0.74515745]
[1751681886741,0.36305402,108110.0,108100.0,0.73590719]
[1751681888334,0.54805078,108110.0,108100.0,0.53116658]
[1751681888561,0.57024645,108110.0,108100.0,0.71752658]
[1751681888782,0.37599986,108110.0,108100.0,0.74527779]
[1751681888979,0.35380419,108110.0,108100.0,0.74527779]
[1751681890604,0.36305402,108110.0,108100.0,0.73602753]
[1751681890740,0.36305394,108110.0,108100.0,0.74527779]
[1751681892494,0.35380419,108110.0,108100.0,0.75452797]
[1751681892699,0.35380419,108110.0,108100.0,0.74527779]
[1751681892899,0.35380419,108110.0,108100.0,0.75452797]
[1751681893956,0.35380419,108110.0,108100.0,0.73602753]
[1751681894162,0.35380419,108110.0,108100.0,0.74527779]
[1751681895044,0.35380674,108110.0,108100.0,0.73602753]
[1751681895268,0.07320878,108110.0,108100.0,0.74527779]
[1751681895483,0.35380674,108110.0,108100.0,0.74527779]
[1751681895715,0.35371424,108110.0,108100.0,0.74527779]
[1751681896157,0.35371424,108110.0,108100.0,0.75452797]
[1751681897216,0.35371424,108110.0,108100.0,0.75452737]
[1751681897416,0.35371424,108110.0,108100.0,0.74527728]
[1751681898051,0.34446458,108110.0,108100.0,0.74527728]
[1751681898215,0.34446458,108110.0,108100.0,0.75452737]
[1751681898423,0.06386654,108110.0,108100.0,0.75452737]
[1751681898597,0.3444645,108110.0,108100.0,0.8459643]
[1751681898800,0.3444645,108110.0,108100.0,0.75452737]
[1751681899612,0.33521501,108110.0,108100.0,0.75452737]
[1751681900048,0.34446442,108110.0,108100.0,0.75452737]
[1751681901392,0.34446433,108110.0,108100.0,0.75452737]
[1751681903745,0.35371374,108110.0,108100.0,0.75452737]
[1751681906128,0.33521501,108110.0,108100.0,0.75452737]
[1751681906354,0.34446442,108110.0,108100.0,0.75452737]
[1751681906542,0.33521501,108110.0,108100.0,0.75452737]
[1751681907290,0.29166586,108110.0,108100.0,0.75452737]
[1751681907510,0.30091501,108110.0,108100.0,0.75452737]
[1751681908402,0.34276424,108110.0,108100.0,0.75452737]
[1751681908626,0.35516365,108110.0,108100.0,0.75452737]
[1751681909443,0.34591424,108110.0,108100.0,0.75452737]
[1751681909884,0.33666501,108110.0,108100.0,0.75452737]
[1751681910096,0.34591433,108110.0,108100.0,0.75452737]
[1751681912022,0.35516374,108110.0,108100.0,0.75452737]
[1751681912962,0.36441332,108110.0,108100.0,0.74535719]
[1751681914900,0.37366298,108110.0,108100.0,0.74535719]
[1751681915559,0.37366298,108110.0,108100.0,0.7361071]
[1751681915778,0.36441383,108110.0,108100.0,0.74535728]
[1751681915988,0.36441383,108110.0,108100.0,0.75460737]
[1751681916229,0.08381587,108110.0,108100.0,0.75460737]
[1751681916474,0.35516417,108110.0,108100.0,0.75460737]
[1751681917025,0.34591459,108110.0,108100.0,0.75460737]
[1751681918022,0.35516408,108110.0,108100.0,0.75460737]
[1751681919728,0.35516748,108110.0,108100.0,0.75460737]
[1751681920241,0.36441706,108110.0,108100.0,0.75460737]
[1751681921887,0.37366672,108110.0,108100.0,0.75460737]
[1751681925895,0.3644174,108110.0,108100.0,0.72685684]
[1751681926101,0.3644174,108110.0,108100.0,0.7361071]
[1751681927354,0.54941416,108110.0,108100.0,0.71760649]
[1751681927623,0.55311093,108110.0,108100.0,0.71752641]
[1751681928484,0.55311093,108110.0,108100.0,0.71752649]
[1751681928684,0.55311093,108110.0,108100.0,0.72677701]
[1751681929118,0.55311093,108110.0,108100.0,0.73602744]
[1751681929889,0.55311093,108110.0,108100.0,0.74527779]
[1751681932172,0.55311093,108110.0,108100.0,0.75452805]
[1751681933025,0.55311093,108110.0,108100.0,0.73602744]
[1751681934887,0.55311093,108110.0,108100.0,0.74527779]
[1751681936079,0.55311104,108110.0,108100.0,0.74527779]